bitfinex/quotes_ETHUSD_20250906
["timestamp","ask_amount","ask_price","bid_price","bid_amount"]
[1757186582329,0.001,4278.9,4278.8,4.19545811]
[1757186592374,0.001,4278.9,4278.8,4.31225811]
[1757186607886,0.2884,4278.9,4278.8,3.13385811]
[1757186608086,0.2884,4278.9,4278.8,2.47790386]
[1757186608319,0.001,4278.9,4278.8,6.39590386]
[1757186609725,0.001,4278.9,4278.8,6.39590386]
[1757186610289,0.2884,4278.9,4278.8,6.39590386]
[1757186612028,0.001,4278.9,4278.8,6.39590386]
[1757186612194,0.001,4278.9,4278.8,7.90325179]
[1757186613330,0.001,4278.9,4278.8,8.19295179]
[1757186613690,0.001,4278.9,4278.8,9.12175179]
[1757186614394,0.001,4278.9,4278.8,8.66115179]
[1757186615643,0.001,4278.9,4278.8,8.19295179]
[1757186616545,0.001,4278.9,4278.8,7.90325179]
[1757186617443,0.001,4278.9,4278.8,8.19295179]
[1757186619447,0.001,4278.9,4278.8,8.66115179]
[1757186619618,0.001,4278.9,4278.8,3.98525179]
[1757186619951,0.001,4278.9,4278.8,6.39490386]
[1757186625271,0.001,4278.9,4278.8,2.47790386]
[1757186625445,0.001,4278.9,4278.8,6.39490386]
[1757186626418,0.001,4278.9,4278.8,7.62050386]
[1757186631557,0.001,4278.9,4278.8,12.32810659]
[1757186631761,0.001,4278.9,4278.8,12.78990659]
[1757186631932,0.001,4278.9,4278.8,14.37289452]
[1757186634755,0.001,4278.9,4278.8,16.91109452]
[1757186634959,0.001,4278.9,4278.8,17.37289452]
[1757186635538,0.001,4278.9,4278.8,17.25609452]
[1757186639133,0.3055,4278.9,4278.8,16.02949452]
[1757186641086,0.3055,4278.9,4278.8,12.11349452]
[1757186641368,0.3055,4278.9,4278.8,16.02949452]
[1757186641527,0.3055,4278.9,4278.8,12.11349452]
[1757186641730,0.001,4278.9,4278.8,16.02949452]
[1757186642057,0.001,4278.9,4278.8,16.32949452]
[1757186642262,0.001,4278.9,4278.8,16.79129452]
[1757186644049,0.001,4278.9,4278.8,17.25509452]
[1757186644249,0.001,4278.9,4278.8,18.04709452]
[1757186645551,0.001,4279.3,4279.2,2.33688539]
[1757186645552,1e-08,4279.3,4279.2,2.33688539]
[1757186645884,1e-08,4279.3,4279.2,14.97597666]
[1757186646048,1e-08,4279.3,4279.2,16.31837666]
[1757186646247,1e-08,4279.3,4279.2,16.41205446]
[1757186651895,1e-08,4279.3,4279.2,15.94825446]
[1757186653165,1e-08,4279.3,4279.2,15.18545446]
[1757186653875,1e-08,4279.3,4279.2,15.47665446]
[1757186655466,1e-08,4279.3,4279.2,16.8183874]
[1757186656159,1e-08,4279.3,4279.2,16.5271874]
[1757186658399,1e-08,4279.3,4279.2,16.8183874]
[1757186658898,1e-08,4279.3,4279.2,12.9033874]
[1757186659106,1e-08,4279.3,4279.2,16.8183874]
[1757186659260,1e-08,4279.3,4279.2,16.8173874]
[1757186659462,1e-08,4279.3,4279.2,16.5261874]
[1757186661226,1e-08,4279.3,4279.2,16.8173874]
[1757186662705,1e-08,4279.3,4279.2,16.5261874]
[1757186666404,1e-08,4279.3,4279.2,16.8173874]
[1757186667464,1e-08,4279.3,4279.2,17.7259874]
[1757186667737,1e-08,4279.3,4279.2,17.2656874]
[1757186667906,1e-08,4279.3,4279.2,16.8173874]
[1757186668101,1e-08,4279.3,4279.2,16.5261874]
[1757186668730,1e-08,4279.3,4279.2,12.6121874]
[1757186668890,1e-08,4279.3,4279.2,16.5261874]
[1757186671340,1e-08,4279.3,4279.2,16.8173874]
[1757186671992,1e-08,4279.3,4279.2,17.2656874]
[1757186672493,1e-08,4279.3,4279.2,16.8173874]
[1757186675331,1e-08,4279.3,4279.2,16.5261874]
[1757186680332,1.23040001,4279.3,4279.2,2.56736319]
[1757186680630,1.23040001,4279.3,4279.2,6.48036319]
[1757186680829,1.23040001,4279.3,4279.2,2.56736319]
[1757186681130,1.23040001,4279.3,4279.2,6.48036319]
[1757186686021,1.23040001,4279.3,4279.2,2.56736319]
[1757186686221,1.23040001,4279.3,4279.2,6.48036319]
[1757186686643,1.23040001,4279.3,4279.2,2.56736319]
[1757186687021,1.23040001,4279.3,4279.2,6.48036319]
[1757186693274,0.77470001,4279.3,4279.2,6.48036319]
[1757186693569,0.31230001,4279.3,4279.2,6.48036319]
[1757186694572,0.31230001,4279.3,4279.2,2.45056319]
[1757186694573,0.76800001,4279.3,4279.2,2.45056319]
[1757186694776,1.23040001,4279.3,4279.2,2.45056319]
[1757186695262,2.03040001,4279.3,4279.2,2.45056319]
[1757186702077,0.80000001,4279.3,4279.2,3.22576319]
[1757186702279,0.80000001,4279.3,4279.2,3.67866319]
[1757186702280,1e-08,4279.3,4279.2,3.67866319]
[1757186702848,1e-08,4279.3,4279.2,7.67182525]
[1757186710092,1e-08,4279.3,4279.2,11.58282525]
[1757186711994,1e-08,4279.3,4279.2,11.69962525]
[1757186713920,1e-08,4279.3,4279.2,11.24672525]
[1757186714216,1e-08,4279.3,4279.2,11.70392525]
[1757186714402,1e-08,4279.3,4279.2,10.77012525]
[1757186714804,1e-08,4279.3,4279.2,11.22732525]
[1757186715622,1e-08,4279.3,4279.2,16.39523072]
[1757186716422,0.29840001,4279.3,4279.2,10.47152525]
[1757186716626,0.74730001,4279.3,4279.2,9.47836319]
[1757186717123,0.29840001,4279.3,4279.2,9.47836319]
[1757186717291,1.22560001,4279.3,4279.2,9.47836319]
[1757186717495,1.22560001,4279.3,4279.2,6.47836319]
[1757186718595,0.77670001,4279.3,4279.2,2.56736319]
[1757186718827,1.22560001,4279.3,4279.2,6.47836319]
[1757186719432,0.74730001,4279.3,4279.2,6.47836319]
[1757186719924,0.29840001,4279.3,4279.2,6.47836319]
[1757186724228,1e-08,4279.3,4279.2,6.47836319]
[1757186724432,1e-08,4279.3,4279.2,9.1797058]
[1757186724940,1e-08,4279.3,4279.2,7.73526319]
[1757186725143,1e-08,4279.3,4279.2,7.23876319]
[1757186725349,1e-08,4279.3,4279.2,6.78156319]
[1757186726378,1e-08,4279.3,4279.2,6.78056319]
[1757186729170,0.29840001,4279.3,4279.2,6.47736319]
[1757186731896,0.29840001,4279.3,4279.2,2.56736319]
[1757186732104,0.29840001,4279.3,4279.2,6.47736319]
[1757186733163,0.29840001,4279.3,4279.2,2.56736319]
[1757186733366,1.22560001,4279.3,4279.2,6.47736319]
[1757186733564,0.74730001,4279.3,4279.2,6.47736319]
[1757186733803,0.29840001,4279.3,4279.2,6.47736319]
[1757186736701,1e-08,4279.3,4279.2,6.47736319]
[1757186737207,1.22560001,4279.3,4279.2,2.56736319]
[1757186737534,1.22560001,4279.3,4278.8,0.004]
[1757186737535,1.22560001,4279.3,4278.3,0.004]
[1757186737536,2.33732236,4278.4,4278.3,0.004]
[1757186737734,2.3374016,4278.3,4277.5,2.33781394]
[1757186737874,0.2984,4278.0,4277.5,3.04085353]
[1757186738204,0.82377679,4278.0,4277.3,2.34191517]
[1757186738378,1.51987679,4278.0,4277.5,0.70304288]
[1757186738577,1.51987679,4278.0,4277.3,2.34191517]
[1757186738895,3.85741769,4278.0,4277.3,0.004]
[1757186739207,3.85741769,4278.0,4277.3,0.70704288]
[1757186741585,9.02532316,4278.0,4277.3,0.70704288]
[1757186741791,12.81732316,4278.0,4277.3,0.004]
[1757186741999,6.12959554,4277.9,4277.3,0.004]
[1757186742199,20.53378137,4277.9,4277.3,0.004]
[1757186742502,2.33786879,4277.4,4277.3,0.004]
[1757186742684,13.21377426,4277.4,4277.3,0.004]
[1757186742884,14.18917426,4277.4,4277.3,0.004]
[1757186744071,17.18917426,4277.4,4277.3,0.004]
[1757186744409,17.92167055,4277.4,4277.3,0.004]
[1757186744819,18.28840791,4277.4,4277.3,0.004]
[1757186748370,38.59301591,4277.4,4277.3,0.004]
[1757186748571,38.81301591,4277.4,4277.3,0.004]
[1757186749019,34.90301591,4277.4,4277.3,0.004]
[1757186749232,20.49169891,4277.4,4277.3,0.004]
[1757186750403,21.28369891,4277.4,4277.3,0.004]
[1757186750974,20.91696155,4277.4,4277.3,0.004]
[1757186751408,35.14394055,4277.4,4277.3,0.004]
[1757186751626,35.68578855,4277.4,4277.3,0.004]
[1757186751828,35.59204455,4277.4,4277.3,0.004]
[1757186751988,35.70972955,4277.4,4277.3,0.004]
[1757186752194,35.71207255,4277.4,4277.3,0.004]
[1757186752496,36.74110055,4277.4,4277.3,0.004]
[1757186753007,36.75750455,4277.4,4277.3,0.004]
[1757186753328,37.07743355,4277.4,4277.3,0.004]
[1757186754083,37.11030455,4277.4,4277.3,0.004]
[1757186754282,37.47707502,4277.4,4277.3,0.004]
[1757186754713,37.47707502,4277.4,4276.9,0.004]
[1757186754714,2.33808744,4277.0,4276.9,0.004]
[1757186754920,23.0279517,4277.0,4276.9,0.004]
[1757186755097,22.2191467,4277.0,4276.9,0.004]
[1757186755290,21.2011467,4277.0,4276.9,0.004]
[1757186755689,21.9931467,4277.0,4276.9,0.004]
[1757186755906,22.0437787,4277.0,4276.9,0.004]
[1757186756188,21.6080787,4277.0,4276.9,0.004]
[1757186757008,21.5878587,4277.0,4276.9,0.004]
[1757186757316,21.5915667,4277.0,4276.9,0.004]
[1757186757529,21.6159447,4277.0,4276.9,0.004]
[1757186757715,21.6158847,4277.0,4276.9,0.004]
[1757186758613,16.1495297,4277.0,4276.9,0.004]
[1757186758802,21.6121517,4277.0,4276.9,0.004]
[1757186759908,22.9943487,4277.0,4276.9,0.004]
[1757186760300,21.5559657,4277.0,4276.9,0.004]
[1757186760845,21.5831737,4277.0,4276.9,0.004]
[1757186761015,7.56003679,4277.0,4276.9,1.2194]
[1757186761218,9.89812423,4277.0,4276.9,1.2194]
[1757186761546,9.89812423,4277.0,4276.9,0.7768]
[1757186761763,9.89812423,4277.0,4276.9,0.4784]
[1757186762524,9.89812423,4277.0,4276.9,0.7768]
[1757186763326,10.10764064,4277.0,4276.9,0.7768]
[1757186763928,6.19564064,4277.0,4276.9,0.7768]
[1757186764170,10.10764064,4277.0,4276.9,0.7768]
[1757186765264,10.10764064,4277.0,4276.9,1.2194]
[1757186765265,7.98709444,4277.0,4276.9,1.2194]
[1757186765640,10.32518188,4277.0,4276.9,1.2194]
[1757186766564,7.98709444,4277.0,4276.9,1.2194]
[1757186766777,10.32518188,4277.0,4276.9,1.2194]
[1757186767093,10.32518188,4277.0,4276.9,0.7768]
[1757186767279,10.4561808,4277.0,4276.9,0.7768]
[1757186768073,6.5441808,4277.0,4276.9,0.7768]
[1757186768279,10.4561808,4277.0,4276.9,0.7768]
[1757186768458,6.5441808,4277.0,4276.9,0.7768]
[1757186768897,10.4561808,4277.0,4276.9,0.7768]
[1757186769190,8.11809336,4277.0,4276.9,1.2194]
[1757186769360,7.47005657,4277.0,4276.9,1.2194]
[1757186769555,5.89614401,4277.0,4276.9,1.2194]
[1757186769761,9.80814401,4277.0,4276.9,1.2194]
[1757186771390,9.80814401,4277.0,4276.9,0.7768]
[1757186771700,9.80814401,4277.0,4276.9,0.004]
[1757186771701,10.56974401,4277.0,4276.9,0.004]
[1757186771852,12.30114814,4277.0,4276.9,0.004]
[1757186773013,12.66792002,4277.0,4276.9,0.004]
[1757186774512,13.45992002,4277.0,4276.9,0.004]
[1757186774811,13.46161298,4277.0,4276.9,0.004]
[1757186778021,28.82905898,4277.0,4276.9,0.004]
[1757186778194,28.24645898,4277.0,4276.9,0.004]
[1757186778383,27.79445798,4277.0,4276.9,0.004]
[1757186778582,34.82445798,4277.0,4276.9,0.004]
[1757186778782,33.99182498,4277.0,4276.9,0.004]
[1757186779019,27.39085498,4277.0,4276.9,0.004]
[1757186779415,23.8190521,4277.0,4276.9,0.004]
[1757186780177,26.3894971,4277.0,4276.9,0.004]
[1757186781218,31.4015141,4277.0,4276.9,0.004]
[1757186781413,27.6583631,4277.0,4276.9,0.004]
[1757186781619,27.2056631,4277.0,4276.9,0.004]
[1757186781832,18.5702411,4277.0,4276.9,0.7853]
[1757186781997,18.5702411,4277.0,4276.9,0.004]
[1757186781998,22.1440263,4277.0,4276.9,0.004]
[1757186782532,23.3887263,4277.0,4276.9,0.004]
[1757186783402,22.9360263,4277.0,4276.9,0.004]
[1757186785817,23.30280285,4277.0,4276.9,0.004]
[1757186787249,23.47359026,4277.0,4276.9,0.004]
[1757186788612,23.92629026,4277.0,4276.9,0.004]
[1757186788812,23.55951371,4277.0,4276.9,0.004]
[1757186789250,23.55951614,4277.0,4276.9,0.004]
[1757186789455,23.10681614,4277.0,4276.9,0.004]
[1757186791775,22.79791614,4277.0,4276.9,0.4807]
[1757186791976,22.79791614,4277.0,4276.9,0.004]
[1757186792179,23.10681614,4277.0,4276.9,0.004]
[1757186795244,23.47359416,4277.0,4276.9,0.004]
[1757186796045,23.16469416,4277.0,4276.9,0.004]
[1757186796241,22.94579846,4277.0,4276.9,0.004]
[1757186796445,23.1646803,4277.0,4276.9,0.004]
[1757186797702,23.4735803,4277.0,4276.9,0.004]
[1757186798280,23.1646803,4277.0,4276.9,0.004]
[1757186798481,23.1646803,4277.0,4276.9,0.4807]
[1757186799097,22.99389289,4277.0,4276.9,0.4807]
[1757186799480,23.42711487,4277.0,4276.9,0.4807]
[1757186801590,23.42711487,4277.0,4276.9,0.004]
[1757186802278,23.71821487,4277.0,4276.9,0.004]
[1757186802773,24.08499287,4277.0,4276.9,0.004]
[1757186803486,23.86611103,4277.0,4276.9,0.004]
[1757186803689,24.08511576,4277.0,4276.9,0.004]
[1757186805378,24.78848832,4277.0,4276.9,0.004]
[1757186807242,10.43676551,4277.0,4276.9,1.2534]
[1757186807393,12.77485295,4277.0,4276.9,0.4866]
[1757186808393,12.7748355,4277.0,4276.9,0.4866]
[1757186808594,14.28622057,4277.0,4276.9,0.7873]
[1757186814466,8.03713313,4277.0,4276.9,0.7873]
[1757186814669,7.06897006,4277.0,4276.9,1.2534]
[1757186816247,3.15897006,4277.0,4276.9,1.2534]
[1757186816471,7.06897006,4277.0,4276.9,1.2534]
[1757186818172,7.06887911,4277.0,4276.9,1.2534]
[1757186818337,7.06887911,4277.0,4276.9,1.95662252]
[1757186823914,3.15887911,4277.0,4276.9,1.95662252]
[1757186824401,7.06887911,4277.0,4276.9,1.49052252]
[1757186824903,7.06887911,4277.0,4276.9,1.95662252]
[1757186825300,10.40505446,4277.0,4276.9,0.004]
[1757186825505,10.87905446,4277.0,4276.9,0.004]
[1757186826699,10.40505446,4277.0,4276.9,0.004]
[1757186828321,10.11395446,4277.0,4276.9,0.4866]
[1757186829019,3.86586702,4277.0,4276.9,0.7873]
[1757186829223,7.06887911,4277.0,4276.9,1.2534]
[1757186829921,7.06887911,4277.0,4276.9,0.7873]
[1757186830224,7.06887911,4277.0,4276.9,0.4866]
[1757186830799,7.06887911,4277.0,4276.9,0.7811]
[1757186831000,7.06887911,4277.0,4276.9,1.2204]
[1757186831194,7.06887911,4277.0,4276.9,0.4866]
[1757186831395,8.32307184,4277.0,4276.9,0.004]
[1757186832003,10.66115928,4277.0,4276.9,0.004]
[1757186832606,8.00967184,4277.0,4276.9,0.004]
[1757186832931,8.00967184,4277.0,4276.9,0.4556]
[1757186833606,10.34775928,4277.0,4276.9,0.4556]
[1757186833804,8.00967184,4277.0,4276.9,0.004]
[1757186834000,21.48315928,4277.0,4276.9,0.004]
[1757186834239,57.68472309,4277.0,4276.9,0.004]
[1757186834387,57.68472309,4277.0,4276.8,0.029]
[1757186834388,3.13014211,4276.9,4276.8,0.029]
[1757186834592,35.74841278,4276.9,4276.8,0.029]
[1757186834837,3.1303608,4276.5,4276.4,0.004]
[1757186835033,43.92129471,4276.5,4276.4,0.004]
[1757186835216,3.13068893,4275.9,4274.7,0.09380742]
[1757186835390,29.80471773,4275.9,4274.8,0.4766]
[1757186835713,29.80471773,4275.9,4275.8,1e-08]
[1757186835714,33.48007037,4275.9,4275.8,1e-08]
[1757186835916,33.33178478,4275.9,4275.8,1e-08]
[1757186836838,33.59239738,4275.9,4275.8,1e-08]
[1757186838113,33.84698681,4275.9,4275.8,1e-08]
[1757186838303,34.02007677,4275.9,4275.8,1e-08]
[1757186838503,34.01846875,4275.9,4275.8,1e-08]
[1757186839315,33.65155231,4275.9,4275.8,1e-08]
[1757186839526,32.31001213,4275.9,4275.8,1e-08]
[1757186840824,39.34001213,4275.9,4275.8,1e-08]
[1757186841206,39.09281213,4275.9,4275.8,1e-08]
[1757186841738,2.33889196,4275.6,4274.8,0.4766]
[1757186841936,3.792,4275.1,4274.9,0.4393]
[1757186842135,3.792,4275.1,4274.8,0.025]
[1757186842136,2.339236,4274.9,4274.8,0.025]
[1757186842543,2.53714109,4274.9,4274.8,0.3195]
[1757186842718,2.53714109,4274.9,4274.8,1.2104]
[1757186843043,2.90407809,4274.9,4274.8,1.2104]
[1757186843404,0.792,4274.6,4273.7,0.00116418]
[1757186843606,5.33934545,4274.7,4273.7,0.00116418]
[1757186843607,6.13178333,4273.9,4273.7,0.00116418]
[1757186843831,20.85533136,4273.9,4273.7,0.00116418]
[1757186844142,19.22517891,4273.9,4273.7,0.00116418]
[1757186844310,18.64791088,4273.9,4273.8,0.7751]
[1757186844513,18.64791088,4273.9,4273.8,1.2144]
[1757186847334,16.30812755,4273.9,4273.8,1.2144]
[1757186847507,18.64791088,4273.9,4273.8,1.2144]
[1757186848812,13.30712755,4273.9,4273.8,1.2144]
[1757186849253,12.94006636,4273.9,4273.8,1.2144]
[1757186851717,5.94006636,4273.9,4273.8,1.2144]
[1757186852137,5.94006636,4273.9,4273.8,3.55423808]
[1757186852336,5.94006636,4273.9,4273.8,1.2144]
[1757186854446,5.94006636,4273.9,4273.8,3.55423808]
[1757186854650,5.94006636,4273.9,4273.8,1.2144]
[1757186855560,5.94006636,4273.9,4273.8,3.55423808]
[1757186855760,5.94006636,4273.9,4273.8,0.7751]
[1757186856078,5.94006636,4273.9,4273.8,1.2144]
[1757186856373,5.94006636,4273.9,4273.8,3.55423808]
[1757186856940,5.94006636,4273.9,4273.8,1.2144]
[1757186859845,7.9823961,4273.9,4273.8,0.029]
[1757186860242,15.50521046,4273.9,4273.8,0.029]
[1757186860950,18.50521046,4273.9,4273.8,0.029]
[1757186861476,19.30521046,4273.9,4273.8,0.029]
[1757186862283,19.52266807,4273.9,4273.8,0.029]
[1757186863472,28.23081732,4273.9,4273.8,0.029]
[1757186863664,26.67594474,4273.9,4273.8,0.029]
[1757186863866,26.20239912,4273.9,4273.8,0.029]
[1757186864256,24.42598912,4273.9,4273.8,0.029]
[1757186864491,20.02050712,4273.9,4273.8,0.029]
[1757186865064,22.65753312,4273.9,4273.8,0.029]
[1757186867102,20.02050712,4273.9,4273.8,0.029]
[1757186867471,14.37847609,4273.9,4273.8,0.029]
[1757186867675,7.45036302,4273.9,4273.8,1.2474]
[1757186868286,7.73566302,4273.9,4273.8,0.029]
[1757186869469,7.36860464,4273.9,4273.8,0.029]
[1757186871913,7.08330464,4273.9,4273.8,0.029]
[1757186872411,7.08330464,4273.9,4273.8,0.4914]
[1757186873982,7.08330464,4273.9,4273.8,0.029]
[1757186874509,7.08330464,4273.9,4273.3,2.34409936]
[1757186874510,28.957663,4273.8,4272.4,0.4624]
[1757186874670,7.52336195,4272.9,4272.4,0.4624]
[1757186875008,17.67767676,4272.9,4272.1,0.4624]
[1757186875191,18.66198131,4272.9,4272.1,0.4624]
[1757186875392,19.91732252,4272.9,4272.1,0.4624]
[1757186875716,19.80103418,4272.9,4272.1,0.4624]
[1757186876488,14.16820315,4272.9,4272.4,0.4624]
[1757186877407,14.61800315,4272.9,4272.4,0.4624]
[1757186877616,14.61800315,4272.9,4272.0,0.4624]
[1757186877831,2.34060481,4272.4,4272.0,0.4624]
[1757186877981,6.48678914,4272.3,4272.0,0.4624]
[1757186878184,6.26866406,4272.3,4272.0,0.4624]
[1757186878386,0.15392109,4272.2,4272.0,0.4624]
[1757186878633,5.728,4272.1,4272.0,0.4624]
[1757186878780,5.728,4272.1,4272.0,0.7704]
[1757186879135,5.87367849,4272.1,4272.0,1.2184]
[1757186881014,1.94567849,4272.1,4272.0,1.2184]
[1757186881204,5.87267849,4272.1,4272.0,1.2184]
[1757186881718,5.87267849,4272.1,4272.0,3.55922397]
[1757186883220,5.87367849,4272.1,4272.0,3.55922397]
[1757186883404,1.94567849,4272.1,4272.0,4.15173896]
[1757186883718,5.87267849,4272.1,4272.0,4.15173896]
[1757186884208,5.87267849,4272.1,4272.0,3.55922397]
[1757186884573,5.98947849,4272.1,4272.0,3.55922397]
[1757186884776,5.87267849,4272.1,4272.0,3.55922397]
[1757186885381,1.94567849,4272.1,4272.0,3.55922397]
[1757186885876,5.87367849,4272.1,4272.0,3.55922397]
[1757186886078,5.87367849,4272.1,4272.0,4.68171942]
[1757186886908,1.94567849,4272.1,4272.0,4.68171942]
[1757186887126,4.07367849,4272.1,4272.0,4.68171942]
[1757186890518,0.14567849,4272.1,4272.0,4.68171942]
[1757186890718,4.07167849,4272.1,4272.0,4.68171942]
[1757186891724,4.07167849,4272.1,4272.0,9.86475045]
[1757186897106,4.07167849,4272.1,4272.0,9.86875045]
[1757186901512,4.07167849,4272.1,4272.0,4.68571942]
[1757186906741,4.06567849,4272.1,4272.0,4.68571942]
[1757186911467,4.06367849,4272.1,4272.0,4.68571942]
[1757186912933,4.06367849,4272.1,4272.0,4.23771942]
[1757186913134,4.06367849,4272.1,4272.0,4.67271942]
[1757186916771,4.06367849,4272.1,4272.0,4.23771942]
[1757186918373,4.06367849,4272.1,4272.0,3.11522397]
[1757186918769,0.14567849,4272.1,4272.0,3.11522397]
[1757186918945,4.06167849,4272.1,4272.0,3.11522397]
[1757186921952,0.14567849,4272.1,4272.0,3.11522397]
[1757186922187,4.06167849,4272.1,4272.0,3.11522397]
[1757186922386,0.14567849,4272.1,4272.0,3.11522397]
[1757186922687,4.06167849,4272.1,4272.0,3.54362397]
[1757186922855,0.14567849,4272.1,4272.0,3.54362397]
[1757186923051,0.14567849,4272.1,4272.0,3.11522397]
[1757186923257,0.14567849,4272.1,4272.0,3.54362397]
[1757186924292,0.14567849,4272.1,4272.0,4.14625632]
[1757186924599,0.13333868,4272.2,4272.1,2.34076917]
[1757186924768,0.13333868,4272.2,4272.1,2.81826917]
[1757186924969,0.13333868,4272.2,4272.1,3.55246917]
[1757186926293,0.13333868,4272.2,4272.1,3.12406917]
[1757186926592,0.13333868,4272.2,4272.1,4.3043944]
[1757186930870,0.13333868,4272.2,4272.1,4.4211944]
[1757186931074,0.13333868,4272.2,4272.1,5.12505708]
[1757186935181,0.13333868,4272.2,4272.1,5.12905708]
[1757186940507,0.13333868,4272.2,4272.1,3.91735708]
[1757186940837,0.13333868,4272.2,4272.1,4.70065708]
[1757186941736,0.13333868,4272.2,4272.1,5.12905708]
[1757186943613,0.13333868,4272.2,4272.1,4.70065708]
[1757186944931,0.13333868,4272.2,4272.1,5.12905708]
[1757186948114,1.801,4272.7,4272.2,2.34071438]
[1757186948347,1.801,4272.7,4272.6,2.76309524]
[1757186948633,1.801,4272.7,4272.6,3.24059524]
[1757186948840,1.801,4272.7,4272.6,3.94439352]
[1757186949203,1.801,4272.7,4272.6,3.16109352]
[1757186949399,2.0966,4272.7,4272.6,3.16109352]
[1757186956345,1.801,4272.7,4272.6,3.16109352]
[1757186958668,5.716,4272.7,4272.6,3.16109352]
[1757186959242,1.801,4272.7,4272.6,3.16109352]
[1757186959765,5.716,4272.7,4272.6,3.64079352]
[1757186960261,2.0895,4272.7,4272.6,3.16109352]
[1757186960467,6.0045,4272.7,4272.6,3.16109352]
[1757186964067,6.4324,4272.7,4272.6,3.16109352]
[1757186966794,6.0045,4272.7,4272.6,3.16109352]
[1757186967353,6.4324,4272.7,4272.6,3.16109352]
[1757186968959,6.0045,4272.7,4272.6,3.16109352]
[1757186971980,6.0055,4272.7,4272.6,3.16109352]
[1757186972971,6.4334,4272.7,4272.6,3.16109352]
[1757186973267,6.0055,4272.7,4272.6,3.16109352]
[1757186977345,5.717,4272.7,4272.6,3.16109352]
[1757186977509,5.717,4272.7,4272.6,3.64079352]
[1757186978495,5.717,4272.7,4272.6,3.94549352]
[1757186978894,5.717,4272.7,4272.6,3.64079352]
[1757186979343,5.717,4272.7,4272.6,3.16109352]
[1757186979526,5.717,4272.7,4272.6,3.64079352]
[1757186979738,6.0055,4272.7,4272.6,3.16109352]
[1757186980244,6.4774,4272.7,4272.6,3.16109352]
[1757186981646,4.2045,4272.7,4272.6,3.16109352]
[1757186984538,4.2025,4272.7,4272.6,3.16109352]
[1757186986835,4.6744,4272.7,4272.6,3.04429352]
[1757186987131,4.8915,4272.7,4272.6,3.04429352]
[1757186987515,4.6744,4272.7,4272.6,3.04429352]
[1757186989146,4.2025,4272.7,4272.6,3.04429352]
[1757186991042,4.6744,4272.7,4272.6,0.70379828]
[1757186991276,5.33362,4272.7,4272.6,0.70379828]
[1757186991940,5.33362,4272.7,4272.6,3.04429352]
[1757186992963,0.1168,4272.6,4272.1,2.34476041]
[1757186993130,0.3108,4272.2,4272.1,2.34476041]
[1757186993330,4.6957,4272.2,4272.1,2.34476041]
[1757186993728,4.6957,4272.2,4272.1,3.04872054]
[1757186996053,4.2238,4272.2,4272.1,3.04872054]
[1757186997476,4.6957,4272.2,4272.1,3.04872054]
[1757186998354,4.2238,4272.2,4272.1,0.004]
[1757186998862,4.6957,4272.2,4272.1,0.004]
[1757187001240,5.41100516,4272.2,4272.1,0.004]
[1757187002889,7.27981954,4272.2,4272.1,0.004]
[1757187003089,7.96881954,4272.2,4272.1,0.004]
[1757187003394,5.41100516,4272.2,4272.1,0.004]
[1757187003954,4.93910516,4272.2,4272.1,0.004]
[1757187004464,5.41100516,4272.2,4272.1,0.004]
[1757187004868,4.93910516,4272.2,4272.1,0.004]
[1757187007507,4.93910516,4272.2,4272.1,0.4567]
[1757187007717,4.93910516,4272.2,4272.1,0.004]
[1757187008612,5.41100516,4272.2,4272.1,0.004]
[1757187010538,12.46549639,4272.2,4272.1,0.004]
[1757187010695,13.36918593,4272.2,4272.1,0.004]
[1757187010892,13.50016053,4272.2,4272.1,0.004]
[1757187012091,13.36918593,4272.2,4272.1,0.004]
[1757187012302,13.50012908,4272.2,4272.1,0.004]
[1757187012821,13.28302908,4272.2,4272.1,0.004]
[1757187013175,13.15208593,4272.2,4272.1,0.004]
[1757187013501,17.29212263,4272.2,4272.1,0.004]
[1757187014390,17.65932758,4272.2,4272.1,0.004]
[1757187016118,0.792,4271.0,4269.6,0.485]
[1757187016415,8.40859021,4270.9,4270.3,0.4598]
[1757187016612,9.0433164,4270.9,4270.1,0.485]
[1757187016827,43.18328539,4270.9,4270.8,1e-08]
[1757187017133,2.34197522,4269.9,4269.5,0.4598]
[1757187017313,8.06797522,4269.9,4269.5,0.4598]
[1757187017479,14.81125207,4269.9,4268.9,0.9448]
[1757187017676,1.801,4269.9,4269.8,0.8028]
[1757187017893,5.728,4269.9,4269.8,0.8028]
[1757187018095,8.36727522,4269.9,4269.8,0.025]
[1757187018299,6.68452,4269.9,4269.8,0.025]
[1757187018510,1.801,4269.9,4269.8,3.60463007]
[1757187018712,5.73,4269.9,4269.8,3.60463007]
[1757187018888,1.801,4269.9,4269.8,3.60463007]
[1757187019224,5.735,4269.9,4269.8,0.3178]
[1757187019384,5.735,4269.9,4269.8,0.8028]
[1757187019582,6.3085,4269.9,4269.8,0.025]
[1757187019782,6.3085,4269.9,4269.8,0.3178]
[1757187019979,6.3085,4269.9,4269.8,0.8028]
[1757187020194,5.735,4269.9,4269.8,0.8028]
[1757187021026,1.801,4269.9,4269.8,1.2626]
[1757187021322,3.449,4270.0,4269.9,2.34197522]
[1757187021533,3.951,4270.1,4269.9,6.42327685]
[1757187021822,1.801,4270.7,4270.0,1.58962769]
[1757187022119,1.801,4270.7,4270.6,2.63439134]
[1757187022319,5.752,4270.7,4270.6,1.2376]
[1757187022692,5.752,4270.7,4270.6,3.57919134]
[1757187023231,5.752,4270.7,4270.2,0.485]
[1757187023406,5.752,4270.7,4270.3,0.9448]
[1757187023733,5.8688,4270.7,4270.3,0.9448]
[1757187023934,5.8688,4270.7,4270.4,0.485]
[1757187024438,5.8688,4270.7,4269.6,3.0]
[1757187024439,0.1168,4270.4,4269.9,3.28676723]
[1757187024642,3.951,4270.3,4269.8,2.36702194]
[1757187024840,0.1168,4270.1,4269.8,2.85202194]
[1757187025044,3.952,4270.0,4269.8,3.31182194]
[1757187025235,3.952,4270.0,4269.9,0.2928]
[1757187025431,0.2973,4269.9,4269.8,0.025]
[1757187027545,6.1482,4270.0,4269.8,0.3218]